Cogmind - Beta 16 @@@ ROGUE MODE // 2026.04.04 @ 09:28:44 Player: GermanMO Result: Destroyed by Gamma Bomb Trap Performance ------------- Evolutions (6) 3000 Regions Visited (6) 1200 Robots Destroyed (17) 85 Value Destroyed (626) 626 Prototype IDs (1) 20 Alien Tech Used (0) 0 Bonus (830) 830 TOTAL SCORE: 5761 Bonus ------- Follower Combat Kills 30 Registered with UFD 300 Met Optimus in HQ 500 Cogmind --------- Core Integrity 0/1150 Matter 300/300 Energy 99/100 System Corruption 4% Temperature Cool (0) Movement Core (100) Ox1 Location -4/Factory Parts ------- > --- POWER (2) -------- (None) > --- PROPULSION (7) --- (None) > --- UTILITY (8) ------ Improved Signal Interpreter > --- WEAPON (2) ------- Companion Sword > --- INVENTORY (5) ---- Advanced Weight Redist. System Advanced Terrain Scan Processor Advanced Actuator Array Subdweller Shrapnel Launcher Spear Peak State ------------ > --- POWER ------------ Light Nuclear Core > --- PROPULSION ------- Cesium-ion Thruster > --- UTILITY ---------- Advanced Weight Redist. System Improved Signal Interpreter Reflective Plating > --- WEAPON ----------- Companion Sword Spear > --- INVENTORY -------- Overtuned Scrapsphere Advanced Weight Redist. System Advanced Terrain Scan Processor Subdweller Shrapnel Launcher [Rating: 26] Favorites ----------- Power Light Nuclear Core Engine Light Ion Engine Power Core Light Nuclear Core Propulsion Wheel Wheel Wheel Flight Unit Cesium-ion Thruster Utility Signal Interpreter Device Advanced Weight Redist. System Storage Small Storage Unit Processor Signal Interpreter Protection Core Shielding Weapon Light Assault Rifle Ballistic Gun Light Assault Rifle Launcher Rocket Launcher Special Weapon Mining Laser Slashing Weapon Companion Sword Piercing Weapon Spear Build | -11 -10 -10 -10 -7 -5 -4 ------- Run | Yrd Mat Min Sub Scr Fac Fac Slots Evolved 12 | . . . . . 10 2 Power 1 | . . . . . 1 . Propulsion 5 | . . . . . 4 1 Utility 6 | . . . . . 5 1 Weapon . | . . . . . . . Parts Attached 27 | 7 4 1 2 7 5 1 Power 2 | 1 . . . 1 . . Engine 1 | 1 . . . . . . Core 1 | . . . . 1 . . Reactor . | . . . . . . . Propulsion 7 | 2 2 . 1 1 1 . Treads . | . . . . . . . Leg . | . . . . . . . Wheel 6 | 2 2 . 1 . 1 . Hover . | . . . . . . . Flight 1 | . . . . 1 . . Utility 12 | 2 1 1 . 3 4 1 Device 5 | 1 . . . 2 1 1 Storage 1 | 1 . . . . . . Processor 4 | . . 1 . 1 2 . Hackware . | . . . . . . . Protection 2 | . 1 . . . 1 . Artifact . | . . . . . . . Weapon 6 | 2 1 . 1 2 . . Energy Gun . | . . . . . . . Energy Cannon . | . . . . . . . Ballistic Gun 2 | 2 . . . . . . Ballistic Cannon . | . . . . . . . Launcher 1 | . . . 1 . . . Special Weapon 1 | . 1 . . . . . Impact Weapon . | . . . . . . . Slashing Weapon 1 | . . . . 1 . . Piercing Weapon 1 | . . . . 1 . . Special Melee Weapon . | . . . . . . . Unidentified Prototypes 1 | . . . . 1 . . Parts Lost 9 | . 1 . 2 . 3 3 Power 1 | . . . . . 1 . Propulsion 5 | . 1 . 2 . . 2 Utility 3 | . . . . . 2 1 Weapon . | . . . . . . . Highest Loss Streak 3 | . 1 . 2 . 3 2 To Critical Strikes . | . . . . . . . Average Backups 4 | . 4 3 4 4 4 4 Power . | . . . . . . . Propulsion . | . 1 . . . . . Utility 1 | . 1 2 1 2 2 2 Weapon 1 | . 1 1 2 1 1 2 Tool/Special . | . . . . . . . Unused Backups 3 | . . . . . . 3 Power . | . . . . . . . Propulsion . | . . . . . . . Utility 2 | . . . . . . 2 Weapon 1 | . . . . . . 1 Tool/Special . | . . . . . . . Average Slot Usage (%) 67 | . 89 85 69 71 25 20 Engine 1 | . 10 . . . . . Core 3 | . . . . 8 1 . Wheel 11 | . 26 28 16 3 2 . Flight 4 | . . . . 9 5 3 Device 4 | . 7 . . 8 1 3 Storage 3 | . 14 14 3 . . . Processor 10 | . . . 14 14 6 7 Protection 3 | . 7 13 6 . . . Ballistic Gun 6 | . 16 28 9 . . . Launcher 5 | . . . 11 6 . . Special Weapon 3 | . 5 . 7 3 . . Slashing Weapon 3 | . . . . 7 5 5 Piercing Weapon 3 | . . . . 9 . . Peak Build Rating 26 | 7 7 6 7 23 26 26 Average Rating 11 | 5 6 6 6 15 17 16 On Entrance 10 | . 7 6 6 6 23 26 Avg Prop Armor Cover (%) 13 | . . . . . 13 12 Naked Turns . | . . . . . . . Heaviest Build 13 | 11 11 8 10 11 13 5 Greatest Support 20 | 20 20 20 20 20 14 5 Greatest Overweight (x) 3 | 1 . . 3 2 . 1 Average Overweight (x) . | . . . . . . . Largest Inventory Capacity 8 | 8 8 8 8 5 5 5 Average Capacity 5 | 7 8 8 5 5 5 5 Most Carried 6 | 3 6 4 5 5 5 5 Average Carried 4 | . 4 3 4 4 4 4 Final Capacity 8 | 8 8 8 5 5 5 5 Final Carried 5 | 3 3 4 4 5 4 5 Class Distribution -------------------- 71% | Mutant 28% | Derelict-Mutant Dominant Class ---------------- Mutant | -10/Materials Mutant | -10/Mines Mutant | -10/Subcaves Derelict-Mutant | -7/Scraptown Mutant | -5/Factory Mutant | -4/Factory Resources | -11 -10 -10 -10 -7 -5 -4 ----------- Run | Yrd Mat Min Sub Scr Fac Fac Matter Collected 659 | 112 131 . 265 81 50 20 Remotely . | . . . . . . . Salvage Created 817 | 140 221 . 66 . 223 167 Parts 50 | 11 14 . 5 . 10 10 Haulers Intercepted 1 | . . . . . 1 . Recyclers Shooed . | . . . . . . . Parts Field Recycled . | . . . . . . . Retrieved Matter . | . . . . . . . Parts Self-Destructed 12 | . . . 12 . . . Prevented . | . . . . . . . Parts Restored . | . . . . . . . Kills | -11 -10 -10 -10 -7 -5 -4 ------- Run | Yrd Mat Min Sub Scr Fac Fac Combat Hostiles Destroyed 12 | . 5 . 2 . 2 3 Melee 5 | . . . . . 2 3 Guns 5 | . 5 . . . . . AOE 2 | . . . 2 . . . Classes Destroyed 8 | 2 1 . 1 . 2 2 Tunneler 3 | 3 . . . . . . Hauler 1 | . . . . . 1 . Recycler 1 | 1 . . . . . . Swarmer 1 | . . . . . . 1 Grunt 6 | . 5 . . . 1 . Hunter 2 | . . . . . . 2 Programmer 1 | . . . . . 1 . Subdweller 2 | . . . 2 . . . Best Kill Streak 5 | 3 5 . 2 . 3 2 Combat Bots Only 5 | . 5 . 2 . 1 2 Max Kills in Single Turn 2 | 1 1 . 2 . 1 1 Gunslinging . | . . . . . . . Exploded 2 | . . . 2 . . . Melee 1 | . . . . . 1 1 Uniques/NPCs Destroyed . | . . . . . . . Combat | -11 -10 -10 -10 -7 -5 -4 -------- Run | Yrd Mat Min Sub Scr Fac Fac Hostile Shots Fired 171 | . 35 . 13 . 20 103 Missed 56 | . 8 . 6 . 7 35 Hits 115 | . 27 . 7 . 13 68 Projectile 115 | . 27 . 7 . 13 68 AOE 3 | . . . 1 . . 2 Damage Taken 2432 | . 337 . 180 . 404 1511 Core 1542 | . 75 . 93 . 181 1193 Absorbed by Shields . | . . . . . . . Redirected to Shielding 21 | . 17 . 4 . . . Core Remaining (%) 71 | 100 . . . 32 81 . Volleys Fired 46 | 13 24 . 9 . . . Largest 2 | 2 2 . 2 . . . Hottest 100 | 40 100 . 100 . . . Shots Fired 84 | 26 47 . 11 . . . Gun 74 | 26 46 . 2 . . . Cannon . | . . . . . . . Launcher 4 | . . . 4 . . . Special 6 | . 1 . 5 . . . Kinetic 74 | 26 46 . 2 . . . Thermal 6 | . 1 . 5 . . . Explosive 4 | . . . 4 . . . Electromagnetic . | . . . . . . . Robot Hit Streak 16 | 8 16 . 1 . . . Robot Miss Streak 2 | 1 2 . 1 . . . Penetration Max . | . . . . . . . Secondary Targets . | . . . . . . . Shots Hit Robots 73 | 21 36 . 1 . 7 8 Core Hits 32 | 8 13 . 3 . 3 5 Critical Kills 1 | 1 . . . . . . Critical Parts Destroyed 1 | 1 . . . . . . Critical Strikes 2 | 2 . . . . . . Destroy 2 | 2 . . . . . . Melee Attacks 37 | . . . . . 20 17 Impact . | . . . . . . . Slashing 37 | . . . . . 20 17 Piercing . | . . . . . . . Sneak Attacks 1 | . . . . . 1 . Combat Hostiles . | . . . . . . . Follow-up Attacks 2 | . . . . . . 2 Damage Inflicted 1435 | 169 296 . 330 . 329 311 Guns 465 | 169 296 . . . . . Cannons . | . . . . . . . Explosions 330 | . . . 330 . . . Melee 640 | . . . . . 329 311 Ramming . | . . . . . . . Kinetic 465 | 169 296 . . . . . Thermal . | . . . . . . . Explosive 330 | . . . 330 . . . Electromagnetic . | . . . . . . . Impact . | . . . . . . . Slashing 640 | . . . . . 329 311 Piercing . | . . . . . . . Highest Corruption 2 | . 2 2 2 2 1 . Average Corruption 1 | . 2 2 2 2 1 . Corruption Purged . | . . . . . . . Corruption Blocked . | . . . . . . . Effects 22 | . 1 1 6 13 1 . Message Errors 5 | . . . 1 3 1 . Matter Fused 7 | . 1 1 1 4 . . Heat Flow Errors 1 | . . . . 1 . . Energy Discharges 5 | . . . 2 3 . . Parts Rejected 1 | . . . 1 . . . Data Loss (major) 1 | . . . 1 . . . Alerts 2 | . . . . 2 . . Overload Shots . | . . . . . . . Overflow Damage 7 | . . . 7 . . . Projectiles . | . . . . . . . Explosions 7 | . . . 7 . . . Melee . | . . . . . . . Knockbacks . | . . . . . . . Impact . | . . . . . . . Kinetic . | . . . . . . . Secondary . | . . . . . . . Self-Inflicted Damage 25 | . . . 25 . . . Shots 1 | . . . 1 . . . Rammed . | . . . . . . . Targets Rammed . | . . . . . . . Kicked . | . . . . . . . Crushed . | . . . . . . . Highest Temperature 169 | . 25 . . 169 . . Average Temperature 28 | . 9 . . 91 . . Received Heat Transfer 264 | . 186 . 18 . 36 24 Siege Activations . | . . . . . . . Martial Activations . | . . . . . . . Shielding Activations . | . . . . . . . Robots Disrupted . | . . . . . . . Combat Hostiles . | . . . . . . . Robots Corrupted . | . . . . . . . Combat Hostiles . | . . . . . . . Parts Fried . | . . . . . . . Impact Corruptions . | . . . . . . . Robots Melted . | . . . . . . . Combat Hostiles . | . . . . . . . Parts Melted . | . . . . . . . Heat Transferred . | . . . . . . . Parts Sabotaged . | . . . . . . . Parts Stolen . | . . . . . . . Parts Stripped . | . . . . . . . Power Chain Reactions . | . . . . . . . Alert | -11 -10 -10 -10 -7 -5 -4 ------- Run | Yrd Mat Min Sub Scr Fac Fac Maximum Alert Level . | . . . . . . . Low Security (%) 100 | 100 100 100 . . 100 100 Level 1 . | . . . . . . . Level 2 . | . . . . . . . Level 3 . | . . . . . . . Level 4 . | . . . . . . . Level 5 . | . . . . . . . High Security . | . . . . . . . Max Security . | . . . . . . . Peak Influence 110 | 10 110 31 . . 89 65 Initial 43 | . . 31 . . . 43 Average 26 | 2 40 6 . . 30 52 Influence Increases 447 | 20 165 . 30 . 156 76 Destroy 0b10 Robot/C 200 | . 100 . . . 40 60 Destroy 0b10 Robot/NC 25 | 20 . . . . 5 . Destroy Leader 42 | . 20 . . . 12 10 Disable Machine 30 | . 15 . . . 15 . Destroy Structure 30 | . . . . . 24 6 Partial Spotted 15 | . . . . . 15 . Lose Combat Pursuer 105 | . 30 . 30 . 45 . Influence Decreases 398 | 20 85 80 15 15 67 116 Entered New Map 110 | . . 49 . 15 . 46 Time Decay 229 | 20 75 31 . . 63 40 Lost Part 44 | . 10 . . . 4 30 Lost Ally 15 | . . . 15 . . . Squads Dispatched 3 | . 1 . . . 1 1 Investigation 1 | . 1 . . . . . Extermination . | . . . . . . . Reinforcement 2 | . . . . . 1 1 Assault . | . . . . . . . Garrison . | . . . . . . . Intercept . | . . . . . . . Searches Triggered . | . . . . . . . Construction Impeded . | . . . . . . . Haulers Reinforced . | . . . . . . . Active Scanning Responses . | . . . . . . . Cargo Convoy Interrupts . | . . . . . . . Stealth | -11 -10 -10 -10 -7 -5 -4 --------- Run | Yrd Mat Min Sub Scr Fac Fac Distress Signals 2 | . 1 . . . . 1 Communications Jammed . | . . . . . . . Distress Signals . | . . . . . . . Times Spotted 39 | . 10 . 10 . 9 10 Peak Tracking Total 9 | . 5 . 6 . 5 9 Tactical Retreats 5 | . 2 . 1 . 2 . Traps | -11 -10 -10 -10 -7 -5 -4 ------- Run | Yrd Mat Min Sub Scr Fac Fac Traps Triggered 3 | . 2 . . . . 1 Indirectly . | . . . . . . . Trap Hack Attempts . | . . . . . . . Triggered . | . . . . . . . Disarmed . | . . . . . . . Reprogrammed . | . . . . . . . Reused . | . . . . . . . Traps Extracted . | . . . . . . . Installed . | . . . . . . . Triggered . | . . . . . . . Machines | -11 -10 -10 -10 -7 -5 -4 ---------- Run | Yrd Mat Min Sub Scr Fac Fac Machines Disabled 2 | . 1 . . . 1 . Max in Single Turn 1 | . 1 . . . 1 . Machines Repaired . | . . . . . . . Machines Dismantled . | . . . . . . . Machines Sabotaged . | . . . . . . . Overloaded Fab Kills . | . . . . . . . Hacking | -11 -10 -10 -10 -7 -5 -4 --------- Run | Yrd Mat Min Sub Scr Fac Fac Machines Accessed 8 | . . . . 8 . . Terminals . | . . . . . . . Fabricators . | . . . . . . . Repair Stations . | . . . . . . . Recycling Units . | . . . . . . . Scanalyzers . | . . . . . . . Garrison Access . | . . . . . . . Total Hacks 46 | . . . . 46 . . Successful 46 | . . . . 46 . . Failed . | . . . . . . . Catastrophic . | . . . . . . . Database Lockouts . | . . . . . . . Manual . | . . . . . . . Terminals . | . . . . . . . Fabricators . | . . . . . . . Repair Stations . | . . . . . . . Recycling Units . | . . . . . . . Scanalyzers . | . . . . . . . Garrison Access . | . . . . . . . Terminal Hacks 46 | . . . . 46 . . Record 45 | . . . . 45 . . Open Door 1 | . . . . 1 . . Fabricator Hacks . | . . . . . . . Repair Station Hacks . | . . . . . . . Recycling Unit Hacks . | . . . . . . . Scanalyzer . | . . . . . . . Garrison Access Hacks . | . . . . . . . Unauthorized Hacks . | . . . . . . . Terminals . | . . . . . . . Fabricators . | . . . . . . . Repair Stations . | . . . . . . . Recycling Units . | . . . . . . . Scanalyzers . | . . . . . . . Garrison Access . | . . . . . . . Data Cores Recovered . | . . . . . . . Used . | . . . . . . . Hacking Detections . | . . . . . . . Full Trace Events . | . . . . . . . Feedback Events . | . . . . . . . Feedback Blocked . | . . . . . . . Robot Schematics Acquired . | . . . . . . . Robots Built . | . . . . . . . Authchips . | . . . . . . . Time . | . . . . . . . Total Robot Build Rating . | . . . . . . . Part Schematics Acquired . | . . . . . . . Parts Built . | . . . . . . . Authchips . | . . . . . . . Time . | . . . . . . . Total Part Build Rating . | . . . . . . . Part Studies Acquired . | . . . . . . . Parts Repaired . | . . . . . . . Time . | . . . . . . . Parts Recycled . | . . . . . . . Recycled Matter . | . . . . . . . Retrieved Matter . | . . . . . . . Retrieved Components . | . . . . . . . Parts Scanalyzed . | . . . . . . . Part Schematics Acquired . | . . . . . . . Parts Damaged . | . . . . . . . Bothacking | -11 -10 -10 -10 -7 -5 -4 ------------ Run | Yrd Mat Min Sub Scr Fac Fac Used RIF Installer . | . . . . . . . Robots Hacked . | . . . . . . . Non-combat . | . . . . . . . Combat . | . . . . . . . Robot Hacks Applied . | . . . . . . . Relay Couplers Released . | . . . . . . . Fabnet Peak Effective % . | . . . . . . . Robots Rewired . | . . . . . . . Allies Hacked . | . . . . . . . Hacks Repelled . | . . . . . . . Allies | -11 -10 -10 -10 -7 -5 -4 -------- Run | Yrd Mat Min Sub Scr Fac Fac Total Allies 3 | . . 3 . . . . Largest Group 3 | . . 3 3 . . . Highest-Rated Group 40 | . . 40 40 . . . Highest-Rated Ally 16 | . . 16 16 . . . Total Orders . | . . . . . . . Ally Attacks 11 | . . . 11 . . . Total Damage 113 | . . . 113 . . . Kills 1 | . . . 1 . . . Allies Corrupted . | . . . . . . . Allies Melted . | . . . . . . . Intel | -11 -10 -10 -10 -7 -5 -4 ------- Run | Yrd Mat Min Sub Scr Fac Fac Active Infowar (turns) 191 | 34 97 . . . 6 54 Sensors 60 | . . . . . 6 54 Seismic 131 | 34 97 . . . . . Robot Analysis Total . | . . . . . . . Derelict Logs Recovered . | . . . . . . . Drone Launches . | . . . . . . . Drone Recoveries . | . . . . . . . Exploration | -11 -10 -10 -10 -7 -5 -4 ------------- Run | Yrd Mat Min Sub Scr Fac Fac Turns Passed 2083 | 84 212 197 445 861 199 85 Spaces Moved 2835 | 44 160 216 381 1598 351 85 Core 125 | 10 . . 8 89 . 18 Treads . | . . . . . . . Legs . | . . . . . . . Wheels 979 | 34 160 216 373 196 . . Hover . | . . . . . . . Flight 1731 | . . . . 1313 351 67 Fastest Speed 35 | 50 80 80 80 35 35 35 Average Speed 58 | 74 80 80 103 48 37 48 Slowest Speed 200 | 100 80 80 200 195 40 100 Overloaded Moves . | . . . . . . . Propulsion Burnouts . | . . . . . . . Robots Hopped . | . . . . . . . Potential Cave-ins . | . . . . . . . Cave-ins Triggered . | . . . . . . . Exploration Rate (%) 34 | 4 33 60 37 91 14 5 Regions Visited 6 Branch Regions 3 Pre-discovered Areas . | . . . . . . . Known Exits Taken 4 | . . 1 1 1 1 . Unknown Exits Taken 2 | 1 1 . . . . . Scrap Searched 7 | . . . . 7 . . Spaces Dug 15 | . . . . . 12 3 Terrain Destroyed 43 | . . . 28 . 12 3 Melee 15 | . . . . . 12 3 Projectile . | . . . . . . . AOE 28 | . . . 28 . . . Terrain Rammed . | . . . . . . . Walls Destroyed . | . . . . . . . Machines Disabled . | . . . . . . . Actions | -11 -10 -10 -10 -7 -5 -4 --------- Run | Yrd Mat Min Sub Scr Fac Fac Total 3113 | 70 208 240 412 1687 387 109 Wait 128 | 4 7 22 15 65 11 4 Move 2829 | 43 159 215 380 1597 350 85 Hop . | . . . . . . . Pick Up 13 | 3 3 1 1 4 . 1 Fast Attach 20 | 7 . . 1 9 3 . Attach 13 | . 6 1 3 . 2 1 Detach 15 | . 6 1 2 3 1 2 Swap . | . . . . . . . Drop 14 | . 3 . 1 9 . 1 Fire 46 | 13 24 . 9 . . . Melee 35 | . . . . . 20 15 Ram . | . . . . . . . Kick . | . . . . . . . Crush . | . . . . . . . Escape Stasis . | . . . . . . . Rewire . | . . . . . . . Trap . | . . . . . . . Miscellaneous . | . . . . . . . Route ------- -11/Scrapyard -10/Materials -10/Mines -10/Subcaves (discovered 4 exits: *Mat x2 / [*Rec] / *Scr) -7/Scraptown (discovered 2 exits: *Fac x2) -5/Factory -4/Factory History --------- Turn | Location | Event 15 | -11/Scrapyard | Discovered new exit (range 16) 85 | -11/Scrapyard | Entered Materials 291 | -10/Materials | Discovered new exit (range 8) 297 | -10/Materials | Entered Mines 301 | -10/Mines | Assisted by bots powering up and referring to "LRC-V3" 306 | -10/Mines | Build established: Mutant 344 | -10/Mines | Received a Rocket Launcher from a helpful Derelict 480 | -10/Mines | Discovered new exit (range 7) 486 | -10/Mines | Identified exit to Subcaves 494 | -10/Mines | Entered Subcaves 494 | -10/Subcaves | Accompanied by 3 allies 495 | -10/Subcaves | Approached by a straggling Scientist 509 | -10/Subcaves | Discovered new exit (range 13) 518 | -10/Subcaves | Identified exit to Materials 581 | -10/Subcaves | Core integrity fell below 50% 775 | -10/Subcaves | Curiously followed by a Cobbler waking with a query about "LVR3C" 796 | -10/Subcaves | Discovered exit to Materials (range 12) 868 | -10/Subcaves | A swath of the cavern ceiling suddenly collapsed 900 | -10/Subcaves | Scientist uncovered a shortcut to Scraptown 922 | -10/Subcaves | Identified exit to Scraptown 933 | -10/Subcaves | Discovered new exit (range 13) 939 | -10/Subcaves | Entered Scraptown 1074 | -7/Scraptown | Visited UFD Registry 1074 | -7/Scraptown | Registered with UFD as "Zerocell" 1103 | -7/Scraptown | Visited Cave Peace 1141 | -7/Scraptown | Visited Symbiants 1204 | -7/Scraptown | Visited Junk Repository 1233 | -7/Scraptown | Visited DA-N13 Charitable Foundation 1237 | -7/Scraptown | Found DCF Scrap (28 items) 1283 | -7/Scraptown | Visited Scrapoid Pod Storage 1291 | -7/Scraptown | Visited Chapter 10 1307 | -7/Scraptown | Visited Derelict Rescue Squad 1313 | -7/Scraptown | Visited Research Penetration Think Tank 1325 | -7/Scraptown | Visited Scrapoid Research Area 1331 | -7/Scraptown | Visited Science Guys 1337 | -7/Scraptown | Visited Sword Containment 1341 | -7/Scraptown | Found Prototype Slashing Weapon 1341 | -7/Scraptown | Identified Companion Sword 1456 | -7/Scraptown | Visited Cyclists 1460 | -7/Scraptown | Entered Cyclist Reading Room 1470 | -7/Scraptown | Visited Fellowship of the Rings 1480 | -7/Scraptown | Visited Assassins FH 1493 | -7/Scraptown | Discovered new exit (range 5) 1494 | -7/Scraptown | Identified exit to Factory 1550 | -7/Scraptown | Build established: Derelict-Mutant 1639 | -7/Scraptown | Visited SPCMW 1645 | -7/Scraptown | Visited Spacefarers 1702 | -7/Scraptown | Met Optimus 1702 | -7/Scraptown | Accepted into 0bPrime 1791 | -7/Scraptown | Discovered exit to Factory (range 3) 1800 | -7/Scraptown | Entered Factory 1800 | -5/Factory | Evolved 10 slots: Power x1, Propulsion x4, Utility x5 1867 | -5/Factory | Lost 3 parts (1p2u) 1990 | -5/Factory | Discovered new exit (range 14) 1998 | -5/Factory | Identified exit to Factory 1999 | -5/Factory | Entered another Factory area 1999 | -4/Factory | Evolved 2 slots: Propulsion x1, Utility x1 2072 | -4/Factory | Core integrity fell below 50% 2079 | -4/Factory | Core integrity fell below 20% 2084 | -4/Factory | Destroyed by Gamma Bomb Trap Last Messages --------------- 02071_ H-77 Assassin destroyed. 02071_ K-01 Serf destroyed. 02071_ Fusion Modulator explodes. 02071_ R-10 Processor destroyed. 02071_ Fusion Modulator explodes. 02071_ K-01 Serf destroyed. 02072_ Penetrated by Slug. 02075_ Slug penetrates Earth. 02075_ Penetrated by Slug. 02083_ S-27 Virus suffers critical hit (Destroy). 02083_ S-27 Virus destroyed. 02084_ Triggered Gamma Bomb Trap. 02084_ A bubble of electromagnetic force engulfs the area. 02084_ Gamma Bomb Trap short circuited. 02084_ T-07 Excavator destroyed. 02084_ Gamma Bomb Trap short circuited. 02084_ A bubble of electromagnetic force engulfs the area. 02084_ Gamma Bomb Trap short circuited. 02084_ A bubble of electromagnetic force engulfs the area. 02084_ Door malfunctions. Map ----- +----------------------------------------------------+ | ?????????????????????????????????????????????????? | | ?????????????????????????????????????????????????? | | ?????????????????????????????????????????????????? | | ?????????????????????????????????????????????????? | | ?????????????????????????????????????????????????? | | ?????????????????????????????????????????????????? | | ?????????????????????????????????????????????????? | | ?????????????????????????????????????????????????? | | ?????????????????????????????????????????????????? | | ?????????????????????????????????????????????????? | | ?????????????????????????????????????????????????? | | ?????????????????????????????????????????????????? | | ?????????????????????????????????????????????????? | | ?????????????????????????????????????????????????? | | ?????????????????????????????????????????????????? | | #?????????###########????????????????????????????? | | ?????### #????????????????????????????? | | ????# " #????????????????????????????? | | ??# " = ##???????????????????????????? | | """"""?# "[ "#???????????????????????????? | | """""" # "== "###?????????????????????????? | | """""" " " " #?????????????????????????? | | """""" " ##?????????????????????????? | | " #?????????????????????????? | | #""" = #########/####+?????????????? | | % % @ #????????? | | #????????? | | +????????? | | ?????????? | | " ?????????? | | ;# ##### ??????????? | | "" = ????? ??????????? | | "R! ; ?????? h ??????????? | | """ ; ?????? k ???????????? | | "" ; ??????? ???????????? | | ? ; ?????? ????????????? | | ? ]# ???????? ????????????? | | # ?##?##+### # ????????####??????????????? | | ? #????? ??# ? ??????????????????????????? | | ? ??????????? ? ???????????????????????????? | | ? ????????????????? ???????????????????????????? | | ?????????????????????????????????????????????????? | | ?????????????????????????????????????????????????? | | ?????????????????????????????????????????????????? | | ?????????????????????????????????????????????????? | | ?????????????????????????????????????????????????? | | ?????????????????????????????????????????????????? | | ?????????????????????????????????????????????????? | | ?????????????????????????????????????????????????? | | ?????????????????????????????????????????????????? | +----------------------------------------------------+ Best States ------------- Heat Dissipation 43 Energy Generation 14 Energy Capacity 160 Matter Stores 300 Matter Capacity 300 Sight Range 16 Robot Scan Range 15 Terrain Scan Density 10 Additional Mass Support 9 Armor Coverage 150 Resistance: TH 10 Core Shielding 20 Evasion (%) 63 Melee Accuracy 6 Item Schematics ----------------- None Robot Schematics ------------------ None Fabricated ------------ Nothing Repaired ---------- Nothing Studied --------- None Alien Tech Used ----------------- None Achievements -------------- None Challenges ------------ None Game ------ Seed OmegaRestorationStripper Manual? 0 Play Time 00:43:48 Cumulative 35.4 hours Start 2026.03.27 @ 17:23:46 End 2026.04.04 @ 09:28:44 Sessions 3 Manual Loads 0 Difficulty Rogue Special Mode None Game No. 46 Rogue 27 Adventurer 0 Explorer 19 Win Type - Total 1 Types 1/0/0/0/0/0/0/0/0/0 Lore% 32 Gallery% 31 Achievement% 25 Wizard Run 0 Options --------- Layout 0 ASCII 0 Keyboard 1 Movement Arrows Keybinds 0 Fullscreen 2 Font 12/Smallcaps Map View 76x50 Zoom Use 0% Tactical HUD 1 Map Filters NONE Filters NONE Steam X RUN: e3eeece1-81a1-44d6-854d-5bf9ebbca1c3